Cogmind - Beta 12 *** ADVENTURER MODE // 2023.05.10 @ 04:48:05 Player: Deep Beef Result: Destroyed by X-82 Rainmaker with Heavy Flak Cannon Performance ------------- Evolutions (6) 3000 Regions Visited (18) 3600 Robots Destroyed (293) 1465 Value Destroyed (14454) 14454 Prototype IDs (22) 440 Alien Tech Used (0) 0 Bonus (4863) 4863 TOTAL SCORE: 27822 Bonus ------- High Alert Combat Kills 1186 Follower Combat Kills 2328 Entered Garrisons 400 Aligned with FarCom 300 A7 Reached Mainframe 300 Met R17 at Cetus 500 Friendly Fire -151 Cogmind --------- Core Integrity 0/1150 Matter 61/300 Energy 99/100 System Corruption 2% Temperature Cool (0) Movement Core (250) Ox4 Location -4/Garrison Parts ------- > --- POWER (2) -------- (None) > --- PROPULSION (4) --- (None) > --- UTILITY (11) ----- Advanced Cryofiber Web Improved Target Analyzer Improved Weapon Cycler Improved System Guard > --- WEAPON (2) ------- Linear Accelerator > --- INVENTORY (5) ---- Improved Force Booster Peak State ------------ > --- POWER ------------ Quantum Reactor > --- PROPULSION ------- Heavy Treads Centrium Heavy Treads > --- UTILITY ---------- Lightpack 2.0 Active Sensor Suite Weapon Mount Improved Target Analyzer Core Analyzer Improved Transmission Jammer Centrium Medium Armor Plating > --- WEAPON ----------- Heavy Tesla Rifle Hardcell Cannon > --- INVENTORY -------- Improved Treads Armored Medium Treads Armored Medium Treads Armored Medium Treads Heavy Treads Centrium Wheel Antigrav System Cooled Gravmag System Advanced Heat Sink Advanced Coolant Injector Huge Storage Unit Energy Well Experimental Sensor Array Advanced Terrain Scanner Advanced Melee Analysis Suite Advanced Melee Analysis Suite Advanced Melee Analysis Suite Improved Target Analyzer Improved Kinecellerator Improved Kinecellerator Improved Weapon Cycler Improved Transmission Jammer Improved Transmission Jammer Improved Phase Shifter Improved Propulsion Shielding Experimental Weapon Shielding Centrium Medium Armor Plating Centrium Medium Armor Plating Focal Shield Force Field Hacking Suite Improved Dynamic Insulation System Advanced Trap Extractor Sensor Drone Bay Coil Gun Improved Remote Datajack Plasma Flamer Chainsword [Rating: 162] Favorites ----------- Power Improved Deuterium Engine Engine Improved Deuterium Engine Power Core Light Nuclear Core Reactor Light Antimatter Reactor Propulsion Improved Titanium Leg Treads Armored Treads Leg Improved Titanium Leg Wheel Armored Wheel Utility Huge Storage Unit Device Improved Transmission Jammer Storage Huge Storage Unit Processor Melee Analysis Suite Hackware Improved System Shield Protection Centrium Medium Armor Plating Weapon Assault Cannon Energy Gun Heavy Laser Energy Cannon Heavy Disruptor Cannon Ballistic Gun KE Penetrator Ballistic Cannon Assault Cannon Launcher Improved Proton Missile Launcher Special Weapon Plasma Flamer Slashing Weapon Chainsword Piercing Weapon Makeshift Spear Build | -11 -10 -10 -9 -9 -9 -8 -8 -8 -8 -7 -7 -7 -6 -6 -6 -5 -4 -4 ------- Run | Jun Mat Min Mat Min Exi Min Mat Gar Mat Fac Low Low Fac Ext Cet Fac Fac Gar Slots Evolved 12 | . . . 2 . . . 2 . . 2 . . 2 . . 2 2 . Power 1 | . . . . . . . . . . 1 . . . . . . . . Propulsion 2 | . . . . . . . 2 . . . . . . . . . . . Utility 9 | . . . 2 . . . . . . 1 . . 2 . . 2 2 . Weapon . | . . . . . . . . . . . . . . . . . . . Parts Attached 244 | 8 1 3 12 7 . . 20 11 2 8 10 5 22 21 10 29 44 31 Power 37 | 1 . 1 . 1 . . 2 . . 2 2 1 6 3 1 4 8 5 Engine 12 | 1 . . . 1 . . 1 . . 1 2 . 3 1 . 2 . . Core 14 | . . 1 . . . . 1 . . 1 . 1 3 2 . 1 4 . Reactor 11 | . . . . . . . . . . . . . . . 1 1 4 5 Propulsion 47 | 4 . . 5 2 . . 11 2 . 2 3 1 1 3 . 4 6 3 Treads 24 | 1 . . 2 2 . . . . . . 3 . . 3 . 4 6 3 Leg 8 | . . . . . . . 4 2 . 2 . . . . . . . . Wheel 15 | 3 . . 3 . . . 7 . . . . 1 1 . . . . . Hover . | . . . . . . . . . . . . . . . . . . . Flight . | . . . . . . . . . . . . . . . . . . . Utility 73 | 1 1 2 3 1 . . 2 3 . 3 3 2 7 6 2 12 12 13 Device 29 | . . 1 . . . . . . . . 1 . 3 2 . 8 6 8 Storage 4 | 1 1 1 . . . . . . . . . . 1 . . . . . Processor 16 | . . . 2 . . . 1 2 . 2 2 2 . . . 1 3 1 Hackware 3 | . . . . . . . . . . . . . . 3 . . . . Protection 21 | . . . 1 1 . . 1 1 . 1 . . 3 1 2 3 3 4 Artifact . | . . . . . . . . . . . . . . . . . . . Weapon 87 | 2 . . 4 3 . . 5 6 2 1 2 1 8 9 7 9 18 10 Energy Gun 8 | . . . . . . . 1 . 2 . . . . . . 1 3 1 Energy Cannon 1 | . . . . . . . . . . . . . . . . . 1 . Ballistic Gun 36 | 2 . . 1 . . . 1 1 . . 1 1 3 5 2 8 10 1 Ballistic Cannon 20 | . . . 3 2 . . 2 2 . . . . 2 . 2 . 1 6 Launcher 6 | . . . . 1 . . . . . . . . . 2 3 . . . Special Weapon 2 | . . . . . . . . . . . . . . . . . 1 1 Impact Weapon . | . . . . . . . . . . . . . . . . . . . Slashing Weapon 11 | . . . . . . . 1 3 . 1 . . 3 2 . . 1 . Piercing Weapon 3 | . . . . . . . . . . . 1 . . . . . 1 1 Special Melee Weapon . | . . . . . . . . . . . . . . . . . . . Unidentified Prototypes 12 | . . . 1 . . . . . . . . . 2 2 1 4 2 . Parts Lost 75 | . . 1 1 7 . . 2 3 1 . 6 6 2 4 1 4 18 19 Power 17 | . . . . 1 . . . . . . 2 2 1 2 . 3 2 4 Propulsion 15 | . . 1 1 2 . . . 1 . . 2 1 1 1 . . 3 2 Utility 24 | . . . . 1 . . . . . . 2 2 . 1 . 1 6 11 Weapon 19 | . . . . 3 . . 2 2 1 . . 1 . . 1 . 7 2 Highest Loss Streak 13 | . . 1 1 7 . . 1 1 1 . 5 4 1 2 1 2 4 13 To Critical Strikes 4 | . . . . . . . . 1 . . . . . . 1 . 1 1 Average Slot Usage (%) 86 | . 86 98 99 97 100 100 97 98 99 100 83 86 74 67 80 80 69 82 Engine 6 | . 14 7 . 9 11 11 4 9 9 14 7 11 6 5 6 4 . . Core 2 | . . 6 11 . . . 4 . . . . 1 5 5 2 1 1 . Reactor 1 | . . . . . . . . . . . . . . . 3 3 5 9 Treads 9 | . . . 2 20 22 22 1 . . . 15 19 . 4 20 16 11 13 Leg 6 | . . . . . . . 8 35 36 30 7 . . . . . . . Wheel 4 | . 28 26 19 . . . 24 . . . . 1 9 3 . . . . Device 6 | . . 6 4 . . . . . . . 5 5 5 2 . 8 16 22 Storage 7 | . 15 21 11 11 11 11 9 9 9 7 7 7 6 6 6 5 5 3 Processor 15 | . . . 17 22 22 22 18 18 18 23 21 23 18 9 5 4 10 12 Hackware 1 | . . . . . . . . . . . . . . 9 13 7 . . Protection 6 | . . . 10 10 11 11 9 9 9 7 . . 5 3 6 10 6 9 Ballistic Gun 5 | . 28 28 9 . . . 3 3 . . 4 5 3 10 6 10 6 . Ballistic Cannon 4 | . . . 12 21 22 22 12 6 . . . . 3 . 4 . 1 6 Slashing Weapon 2 | . . . . . . . . 7 9 7 7 . 2 1 . . . . Naked Turns . | . . . . . . . . . . . . . . . . . . . Heaviest Build 112 | 12 22 90 103 103 98 98 106 106 100 110 106 107 112 41 57 62 79 93 Greatest Support 150 | 26 26 26 40 40 40 40 75 80 70 70 70 60 56 70 70 150 150 150 Greatest Overweight (x) 28 | . . 5 8 28 2 2 8 1 1 1 2 3 3 13 . . . 13 Average Overweight (x) . | . . 1 3 2 2 2 1 1 1 1 1 1 . . . . . . Largest Inventory Capacity 40 | 8 10 25 25 25 25 25 25 25 25 25 25 25 40 40 40 40 40 40 Average Capacity 29 | 6 8 16 25 25 25 25 25 25 25 25 25 25 33 40 40 40 40 27 Most Carried 40 | 2 6 11 24 24 24 24 25 25 25 25 25 25 39 40 40 40 40 40 Average Carried 27 | 1 3 8 18 18 22 24 24 24 25 24 24 24 27 38 38 38 36 26 Final Capacity 40 | 8 10 25 25 25 25 25 25 25 25 25 25 25 40 40 40 40 40 5 Final Carried 40 | 2 6 11 24 18 24 24 25 25 25 25 25 23 39 39 40 37 40 1 Class Distribution -------------------- 59% | Mutant 22% | Hauler-Mutant 10% | Hauler-Skirmisher Dominant Class ---------------- Mutant | -10/Materials Mutant | -10/Mines Mutant | -9/Materials Mutant | -9/Mines Mutant | -9/Exiles Mutant | -8/Mines Mutant | -8/Materials Mutant | -8/Garrison Mutant | -8/Materials Mutant | -7/Factory Mutant | -7/Lower Caves Mutant | -7/Lower Caves Hauler-Assassin | -6/Factory Hauler-Mutant | -6/Extension Hauler-Mutant | -6/Cetus Hauler-Mutant | -5/Factory Hauler-Skirmisher | -4/Factory Hauler-Mutant | -4/Garrison Resources | -11 -10 -10 -9 -9 -9 -8 -8 -8 -8 -7 -7 -7 -6 -6 -6 -5 -4 -4 ----------- Run | Jun Mat Min Mat Min Exi Min Mat Gar Mat Fac Low Low Fac Ext Cet Fac Fac Gar Matter Collected 8649 | 122 177 158 600 161 . . 579 354 24 70 161 194 637 603 263 827 2128 1591 Remotely . | . . . . . . . . . . . . . . . . . . . Salvage Created 11883 | . 269 59 704 86 . . 1023 590 305 217 493 751 865 410 98 1309 3513 1191 Parts 598 | . 27 2 46 4 . . 54 33 16 23 24 29 40 28 6 69 166 31 Haulers Intercepted 7 | . . . 3 . . . . . . 1 . . . . . 1 2 . Recyclers Shooed 10 | . . . . . . . . . . . . . 2 3 . 1 4 . Parts Field Recycled . | . . . . . . . . . . . . . . . . . . . Retrieved Matter . | . . . . . . . . . . . . . . . . . . . Parts Self-Destructed 58 | . . . . . . . . . . . 26 32 . . . . . . Prevented . | . . . . . . . . . . . . . . . . . . . Kills | -11 -10 -10 -9 -9 -9 -8 -8 -8 -8 -7 -7 -7 -6 -6 -6 -5 -4 -4 ------- Run | Jun Mat Min Mat Min Exi Min Mat Gar Mat Fac Low Low Fac Ext Cet Fac Fac Gar Combat Hostiles Destroyed 245 | . 10 1 17 7 . . 25 15 8 4 13 19 12 9 2 22 53 28 Melee 43 | . . . . . . . . 9 8 4 13 5 3 . . . 1 . Guns 106 | . 10 1 6 . . . 5 3 . . . 14 4 7 . 22 33 1 Cannons 82 | . . . 11 4 . . 16 3 . . . . 4 2 1 . 17 24 AOE 10 | . . . . 3 . . 4 . . . . . 1 . . . 2 . Classes Destroyed 18 | . 3 1 3 2 . . 2 . . 1 . . 2 . . 1 2 1 Worker 5 | . . 1 . . . . . . . . . . 2 . . 1 1 . Builder 6 | . . . . . . . 1 . . . . . 1 1 . . 3 . Tunneler 1 | . . . . . . . . . . . . . 1 . . . . . Hauler 7 | . . . 3 . . . . . . 1 . . . . . 1 2 . Recycler 6 | . . . . . . . 2 . . . . . 2 . . . 2 . Mechanic 1 | . . . . . . . . . . . . . . . . . 1 . Operator 3 | . . . 1 . . . 2 . . . . . . . . . . . Watcher 21 | . 3 . 3 . . . 5 . 1 . . . . 3 . . 5 1 Swarmer 68 | . 8 . 3 . . . 8 5 4 . 7 9 . 3 1 5 12 3 Grunt 74 | . 2 1 9 2 . . 13 2 4 . 5 9 5 1 . 3 11 7 Brawler 4 | . . . . 1 . . . . . . . . . . . . 1 2 Duelist 3 | . . . . . . . . . . . . . . . . . . 3 Sentry 38 | . . . 5 . . . 4 8 . . 1 1 2 4 . 4 3 6 Specialist 4 | . . . . . . . . . . . . . . . . . 2 2 Hunter 15 | . . . . . . . . . . . . . 2 1 . 3 7 2 Programmer 33 | . . . . . . . . . . 4 . . 3 . . 6 17 3 Heavy 2 | . . . . . . . . . . . . . . . . 1 1 . Cetus Guard 1 | . . . . . . . . . . . . . . . 1 . . . Assembled 3 | . . . . 3 . . . . . . . . . . . . . . Best Kill Streak 8 | . 6 1 2 6 . . 8 5 4 1 4 6 6 4 1 5 7 5 Combat Bots Only 7 | . 6 1 2 6 . . 5 5 3 1 4 6 4 4 1 5 7 5 Max Kills in Single Turn 6 | . 2 1 1 1 . . 6 1 1 1 1 1 2 1 1 2 2 1 Gunslinging 1 | . 1 . . . . . . . . . . . . . . 1 . . Exploded 4 | . . . . 1 . . 4 . . . . . 1 . . . 2 . Melee 1 | . . . . . . . . 1 1 1 1 1 1 . . . 1 . Uniques/NPCs Destroyed 1 | . . . . 1 . . . . . . . . . . . . . . YI-UF0 (-9/Mines) Combat | -11 -10 -10 -9 -9 -9 -8 -8 -8 -8 -7 -7 -7 -6 -6 -6 -5 -4 -4 -------- Run | Jun Mat Min Mat Min Exi Min Mat Gar Mat Fac Low Low Fac Ext Cet Fac Fac Gar Damage Taken 19448 | . 171 47 327 1109 . . 747 930 338 95 998 1152 1191 1043 331 1942 4337 4690 Core 2554 | . 58 22 76 303 . . 68 107 54 12 142 139 99 119 23 182 389 761 Absorbed by Shields 778 | . . . . . . . . . . . . . . 180 123 475 . . Redirected to Shielding 271 | . . . . . . . 14 . . . . . 83 . . . 174 . Core Remaining (%) 63 | 100 . 68 . . . 5 . . 58 . . 58 . . 71 81 . . Volleys Fired 726 | . 26 3 55 10 . . 63 25 2 . 1 42 50 45 15 68 202 119 Largest 2 | . 2 2 2 2 . . 2 2 1 . 1 1 2 2 2 2 2 2 Hottest 165 | . 40 40 88 88 . . 89 67 50 . 28 33 76 76 78 66 135 165 Shots Fired 1301 | . 52 7 111 17 . . 116 49 2 . 2 43 87 78 25 138 366 208 Gun 763 | . 52 7 46 . . . 35 25 2 . 2 43 50 60 10 138 273 20 Cannon 516 | . . . 65 14 . . 81 24 . . . . 37 14 9 . 90 182 Launcher 13 | . . . . 3 . . . . . . . . . 4 6 . . . Special 9 | . . . . . . . . . . . . . . . . . 3 6 Kinetic 1192 | . 52 7 111 14 . . 92 49 . . 2 43 87 74 19 138 335 169 Thermal 9 | . . . . . . . . . . . . . . . . . 3 6 Explosive 3 | . . . . 3 . . . . . . . . . . . . . . Electromagnetic 97 | . . . . . . . 24 . 2 . . . . 4 6 . 28 33 Robot Hit Streak 42 | . 12 14 28 21 . . 40 31 4 . 5 20 18 17 10 40 42 28 Robot Miss Streak 7 | . 3 . 3 1 . . 3 1 . . . 2 3 7 5 2 3 2 Penetration Max 2 | . . . . . . . . . . . . . 1 1 . 1 2 . Secondary Targets 10 | . 3 . . . . . . . . . . . . 1 . 4 2 . Max Gunslinging Chain 1 | . 1 . . . . . . . . . . . . 1 . 1 1 . Shots Hit Robots 1066 | . 39 6 79 14 . . 91 70 25 8 34 52 74 58 18 119 240 139 Core Hits 515 | . 16 6 24 8 . . 47 22 9 5 14 26 33 56 7 54 134 54 Critical Kills 14 | . . . 2 . . . 2 . . . . . . 1 . 3 6 . Critical Parts Destroyed 17 | . . . 2 . . . 1 . . . . 1 . . 1 2 10 . Critical Strikes 96 | . . . 10 . . . 13 7 . 1 2 4 3 3 1 5 30 17 Burn 1 | . . . . . . . . . . . . . . . . . 1 . Destroy 31 | . . . 4 . . . 3 . . . . 1 . 1 1 5 16 . Blast 45 | . . . 6 . . . 9 2 . . . . 2 2 . . 9 15 Corrupt 6 | . . . . . . . 1 . . . . . . . . . 4 1 Sever 9 | . . . . . . . . 5 . 1 2 . 1 . . . . . Impale 4 | . . . . . . . . . . . . 3 . . . . . 1 Melee Attacks 212 | . . . . . . . 3 62 24 15 39 20 39 7 . . 1 2 Impact . | . . . . . . . . . . . . . . . . . . . Slashing 188 | . . . . . . . 3 62 24 15 39 . 37 7 . . 1 . Piercing 24 | . . . . . . . . . . . . 20 2 . . . . 2 Sneak Attacks 6 | . . . . . . . . 1 1 2 . . 2 . . . . . Combat Hostiles 1 | . . . . . . . . 1 . . . . . . . . . . Follow-up Attacks . | . . . . . . . . . . . . . . . . . . . Damage Inflicted 31985 | . 507 104 1605 477 . . 2126 1993 953 404 1334 1340 2425 1505 601 3369 7862 5380 Guns 12672 | . 507 70 414 . . . 466 314 35 . 17 789 752 1175 150 3166 4540 277 Cannons 12480 | . . . 1165 263 . . 1505 414 . . . . 908 199 220 . 2810 4996 Explosions 1359 | . . . . 214 . . 155 . . . . . 49 119 231 198 393 . Melee 5203 | . . . . . . . . 1265 918 404 1317 551 705 . . . . 43 Ramming 166 | . . 34 26 . . . . . . . . . 11 12 . 5 78 . Kinetic 23510 | . 507 70 1579 263 . . 1652 728 . . 17 789 1660 1374 370 3166 6629 4706 Thermal 309 | . . . . . . . 155 . . . . . 49 . . . 41 64 Explosive 676 | . . . . 214 . . . . . . . . . . . 198 264 . Electromagnetic 2121 | . . . . . . . 319 . 35 . . . . 119 231 . 850 567 Impact . | . . . . . . . . . . . . . . . . . . . Slashing 4609 | . . . . . . . . 1265 918 404 1317 . 705 . . . . . Piercing 594 | . . . . . . . . . . . . 551 . . . . . 43 Highest Corruption 13 | . . 3 1 1 1 1 . . 1 2 2 2 2 2 2 11 9 13 Average Corruption 2 | . . 3 1 1 1 1 . . 1 1 2 2 1 2 2 7 3 6 Corruption Purged 5 | . . . . . . . . . . . . . . . . 5 . . Corruption Blocked 20 | . . . . . . . . . . . . . . . . . . 20 Effects 341 | . . 3 5 16 8 2 . . 3 1 43 29 18 21 11 53 66 62 Message Errors 80 | . . 1 1 7 1 1 . . 1 1 12 5 2 4 2 11 13 18 Matter Fused 59 | . . . . 2 . . . . 2 . 5 6 4 5 1 11 11 12 Heat Flow Errors 50 | . . . . 1 3 1 . . . . 7 5 4 7 1 5 10 6 Energy Discharges 42 | . . 1 2 1 2 . . . . . 6 3 . 2 2 6 9 8 Parts Rejected 2 | . . . . . . . . . . . . . . . 1 . 1 . Parts Fused 7 | . . . . . . . . . . . . 1 1 1 1 1 2 . Data Loss (minor) 53 | . . . 1 4 . . . . . . 7 7 5 2 1 10 6 10 Data Loss (major) 18 | . . . . . . . . . . . 3 1 1 . 1 2 8 2 Misfires 13 | . . 1 1 1 . . . . . . 1 1 1 . 1 3 3 . Alerts 9 | . . . . . 2 . . . . . 2 . . . . 3 1 1 Weapon Failures 8 | . . . . . . . . . . . . . . . . 1 2 5 Overload Shots . | . . . . . . . . . . . . . . . . . . . Overflow Damage 808 | . . . 85 29 . . 9 55 65 43 38 . 170 . . 14 157 143 Projectiles 476 | . . . 85 29 . . 9 . . . . . 90 . . . 120 143 Explosions 51 | . . . . . . . . . . . . . . . . 14 37 . Melee 281 | . . . . . . . . 55 65 43 38 . 80 . . . . . Knockbacks 81 | . . . 5 5 . . 13 1 . . . . 6 2 1 . 24 24 Impact 4 | . . . 1 . . . . . . . . . . 1 . . 2 . Kinetic 68 | . . . 4 5 . . 11 1 . . . . 5 1 1 . 19 21 Secondary 9 | . . . . . . . 2 . . . . . 1 . . . 3 3 Self-Inflicted Damage 150 | . . 16 12 . . . . . . . . . 5 6 . . 111 . Shots 4 | . . . . . . . . . . . . . . . . . 4 . Rammed 23 | . . 3 2 . . . . . . . . . 1 1 . 1 15 . Targets Rammed 24 | . . 3 2 . . . . . . . . . 1 1 . 1 16 . Kicked . | . . . . . . . . . . . . . . . . . . . Crushed 1 | . . . . . . . . . . . . . . . . . 1 . Highest Temperature 545 | . . 2 243 268 209 120 209 189 21 . 192 278 337 274 221 244 402 545 Average Temperature 87 | . . 2 52 67 84 65 81 55 12 . 72 95 116 60 83 41 96 158 Received Heat Transfer 3936 | . 42 27 159 42 . . 513 441 216 . 318 549 270 219 91 134 253 662 Effects 19 | . . . . . . . 2 . . . . . 2 . . . 6 9 Shutdowns 4 | . . . . . . . . . . . . . 1 . . . 1 2 Energy Bleed 6 | . . . . . . . 1 . . . . . 1 . . . 1 3 Interference 3 | . . . . . . . 1 . . . . . . . . . 2 . Short Circuit 1 | . . . . . . . . . . . . . . . . . . 1 Damage (minor) 5 | . . . . . . . . . . . . . . . . . 2 3 Siege Activations . | . . . . . . . . . . . . . . . . . . . Robots Corrupted 4 | . . . . . . . . . . . . . . . 1 . 1 2 Combat Hostiles 3 | . . . . . . . . . . . . . . . 1 . . 2 Parts Fried 16 | . . . . . . . 1 . . . . . . . 1 . 9 5 Impact Corruptions 2 | . . . . . . . . . . . . . . . . . . 2 Robots Melted . | . . . . . . . . . . . . . . . . . . . Combat Hostiles . | . . . . . . . . . . . . . . . . . . . Parts Melted . | . . . . . . . . . . . . . . . . . . . Heat Transferred 1050 | . . . . . . . 200 . . . . . 50 . . . 400 400 Parts Sabotaged . | . . . . . . . . . . . . . . . . . . . Parts Stolen . | . . . . . . . . . . . . . . . . . . . Parts Stripped . | . . . . . . . . . . . . . . . . . . . Power Chain Reactions 1 | . . . . . . . 1 . . . . . . . . . . . Missiles Intercepted . | . . . . . . . . . . . . . . . . . . . Alert | -11 -10 -10 -9 -9 -9 -8 -8 -8 -8 -7 -7 -7 -6 -6 -6 -5 -4 -4 ------- Run | Jun Mat Min Mat Min Exi Min Mat Gar Mat Fac Low Low Fac Ext Cet Fac Fac Gar Peak Influence 1212 | . 379 113 198 69 . . 421 1197 506 143 . . 340 196 455 487 515 1212 Initial 502 | . . 68 . 4 . . . 94 502 143 . . . 14 3 221 13 176 Average 231 | . 234 45 52 14 . . 192 628 388 54 . . 101 74 291 242 158 707 Maximum Alert Level 4 | . 1 . . . . . 2 4 2 . . . 1 . 2 2 2 4 Low Security (%) 57 | 100 27 100 100 100 . 100 54 15 . 100 . . 78 100 12 23 63 . Level 1 24 | . 72 . . . . . 44 13 60 . . . 21 . 59 58 27 25 Level 2 9 | . . . . . . . 1 26 39 . . . . . 27 18 8 17 Level 3 7 | . . . . . . . . 37 . . . . . . . . . 51 Level 4 1 | . . . . . . . . 7 . . . . . . . . . 4 Level 5 . | . . . . . . . . . . . . . . . . . . . High Security . | . . . . . . . . . . . . . . . . . . . Max Security . | . . . . . . . . . . . . . . . . . . . Squads Dispatched 50 | . 1 1 6 . . . 2 . 1 5 . 1 7 2 . 9 15 . Investigation 14 | . 1 1 1 . . . 1 . . 2 . . 2 1 . 2 3 . Extermination 18 | . . . . . . . . . . 3 . . 2 . . 4 9 . Reinforcement 15 | . . . 5 . . . 1 . 1 . . . 2 1 . 2 3 . Assault 1 | . . . . . . . . . . . . 1 . . . . . . Garrison 2 | . . . . . . . . . . . . . 1 . . 1 . . Intercept . | . . . . . . . . . . . . . . . . . . . Searches Triggered . | . . . . . . . . . . . . . . . . . . . Construction Impeded 2 | . . . . . . . . . . . . . . 1 . 1 . . Haulers Reinforced 1 | . . . . . . . . . . . . . . . . . 1 . Active Scanning Responses 3 | . . . . . . . . . . . . . . . . . 3 . Cargo Convoy Interrupts 1 | . . . . . . . . . . . . . . . . 1 . . Stealth | -11 -10 -10 -9 -9 -9 -8 -8 -8 -8 -7 -7 -7 -6 -6 -6 -5 -4 -4 --------- Run | Jun Mat Min Mat Min Exi Min Mat Gar Mat Fac Low Low Fac Ext Cet Fac Fac Gar Distress Signals 20 | . 3 . 4 . . . 5 . 2 . . . 1 . 2 1 2 . Communications Jammed 43 | . . . . . . . . . . . . . . . . . 43 . Distress Signals 39 | . . . . . . . . . . . . . . . . . 39 . Times Spotted 397 | . 16 2 36 15 . . 33 25 13 6 14 24 27 23 25 30 68 40 Peak Tracking Total 16 | . 5 2 4 7 . . 6 5 4 3 4 7 5 5 6 6 7 16 Tactical Retreats 17 | . . 1 . . . . . 3 2 1 1 1 1 1 1 1 2 2 Traps | -11 -10 -10 -9 -9 -9 -8 -8 -8 -8 -7 -7 -7 -6 -6 -6 -5 -4 -4 ------- Run | Jun Mat Min Mat Min Exi Min Mat Gar Mat Fac Low Low Fac Ext Cet Fac Fac Gar Traps Triggered 18 | . 1 . . . . . 3 . 2 2 . . . . . 6 1 3 Indirectly . | . . . . . . . . . . . . . . . . . . . Trap Hack Attempts . | . . . . . . . . . . . . . . . . . . . Triggered . | . . . . . . . . . . . . . . . . . . . Disarmed 10 | . . . . . . . . . . . . . . . . 10 . . Reprogrammed 7 | . . . . . . . . . . . . . . 6 . 1 . . Reused . | . . . . . . . . . . . . . . . . . . . Traps Extracted . | . . . . . . . . . . . . . . . . . . . Installed . | . . . . . . . . . . . . . . . . . . . Triggered 3 | . . . . . . . . . . . . . . . . 3 . . Machines | -11 -10 -10 -9 -9 -9 -8 -8 -8 -8 -7 -7 -7 -6 -6 -6 -5 -4 -4 ---------- Run | Jun Mat Min Mat Min Exi Min Mat Gar Mat Fac Low Low Fac Ext Cet Fac Fac Gar Machines Disabled 58 | . . . 2 . . . . 6 . . . . 4 2 5 17 11 11 Max in Single Turn 6 | . . . 1 . . . . 1 . . . . 3 1 1 6 4 2 Garrison Relay 8 | . . . . . . . . 4 . . . . . . . . . 4 Phase Generator 1 | . . . . . . . . . . . . . . . . . . 1 Machines Repaired . | . . . . . . . . . . . . . . . . . . . Machines Sabotaged . | . . . . . . . . . . . . . . . . . . . Overloaded Fab Kills . | . . . . . . . . . . . . . . . . . . . Hacking | -11 -10 -10 -9 -9 -9 -8 -8 -8 -8 -7 -7 -7 -6 -6 -6 -5 -4 -4 --------- Run | Jun Mat Min Mat Min Exi Min Mat Gar Mat Fac Low Low Fac Ext Cet Fac Fac Gar Machines Accessed 92 | . 8 2 9 . . . 7 5 1 8 1 . 10 17 2 11 9 2 Terminals 75 | . 8 . 9 . . . 4 5 1 4 . . 7 17 2 9 7 2 Fabricators 8 | . . . . . . . . . . 3 . . 2 . . 2 1 . Repair Stations . | . . . . . . . . . . . . . . . . . . . Recycling Units . | . . . . . . . . . . . . . . . . . . . Scanalyzers 4 | . . . . . . . 2 . . 1 . . 1 . . . . . Garrison Access 2 | . . . . . . . 1 . . . . . . . . . 1 . Total Hacks 283 | . 29 2 28 . . . 27 9 5 24 1 . 39 52 7 40 18 2 Successful 198 | . 20 2 18 . . . 24 4 3 20 1 . 25 37 5 27 10 2 Failed 85 | . 9 . 10 . . . 3 5 2 4 . . 14 15 2 13 8 . Catastrophic 9 | . . . . . . . . . . 1 . . 2 1 . 4 1 . Database Lockouts . | . . . . . . . . . . . . . . . . . . . Manual 102 | . 13 . 14 . 1 . 9 3 2 8 . . 16 16 4 11 5 . Terminals 232 | . 29 . 28 . . . 10 9 5 13 . . 25 52 7 36 16 2 Fabricators 14 | . . . . . . . . . . 5 . . 4 . . 4 1 . Repair Stations . | . . . . . . . . . . . . . . . . . . . Recycling Units . | . . . . . . . . . . . . . . . . . . . Scanalyzers 32 | . . . . . . . 16 . . 6 . . 10 . . . . . Garrison Access 2 | . . . . . . . 1 . . . . . . . . . 1 . Terminal Hacks 107 | . 13 2 10 . . . 2 4 2 4 1 . 6 31 5 18 7 2 Record 12 | . . . . . . . . . . . . . . 3 4 1 4 . Part Schematic 5 | . . . . . . . . . . . . . 2 1 . 2 . . Robot Schematic 3 | . . . . . . . . . . . . . . . . 3 . . Robot Analysis 7 | . 2 . 2 . . . . . . 1 . . . 1 . 1 . . Prototype ID Bank 5 | . 2 . . . . . . . 1 . . . . 1 . 1 . . Open Door 15 | . . 2 . . . . . 1 . . 1 . . 9 1 . . 1 Open DSF 4 | . . . . . . . . . . . . . 1 . . 1 2 . Branch Access Points 3 | . 1 . 1 . . . . . . . . . . 1 . . . . Emergency Access Points 5 | . 2 . . . . . . 1 . . . . 1 . . . . 1 Terminal Index 3 | . . . . . . . 1 . . . . . 1 . . 1 . . Alert Level 4 | . . . 1 . . . . . 1 . . . . 1 . 1 . . Unreport Threat 5 | . . . 1 . . . . . . 2 . . . 2 . . . . Locate Traps 11 | . 1 . 2 . . . . . . 1 . . 1 3 . 3 . . Disarm Traps 2 | . . . . . . . . . . . . . . . . 2 . . Reprogram Traps 2 | . . . . . . . . . . . . . . 1 . 1 . . Maintenance Status 1 | . . . . . . . . . . . . . . 1 . . . . Security Status 2 | . . . . . . . . . . . . . . 2 . . . . Surveillance Status 1 | . . . . . . . . . . . . . . 1 . . . . Patrol Status 1 | . . . . . . . . . . . . . . 1 . . . . Transport Status 1 | . 1 . . . . . . . . . . . . . . . . . Recall Investigation 2 | . 1 . . . . . 1 . . . . . . . . . . . Hauler Manifests 3 | . 1 . 1 . . . . . . . . . . 1 . . . . Registered Components 1 | . . . 1 . . . . . . . . . . . . . . . Registered Prototypes 1 | . . . . . . . . . . . . . . . . 1 . . Zone Layout 6 | . 2 . 1 . . . . . . . . . . 2 . . 1 . Garrison Registry 1 | . . . . . . . . 1 . . . . . . . . . . Patrol Navigation 1 | . . . . . . . . 1 . . . . . . . . . . Fabricator Hacks 10 | . . . . . . . . . . 5 . . 1 . . 4 . . Load Schematic 5 | . . . . . . . . . . 2 . . 1 . . 2 . . Build 5 | . . . . . . . . . . 3 . . . . . 2 . . Repair Station Hacks . | . . . . . . . . . . . . . . . . . . . Recycling Unit Hacks . | . . . . . . . . . . . . . . . . . . . Scanalyzer 32 | . . . . . . . 16 . . 6 . . 10 . . . . . Insert Component 16 | . . . . . . . 8 . . 3 . . 5 . . . . . Analyze 16 | . . . . . . . 8 . . 3 . . 5 . . . . . Garrison Access Hacks 2 | . . . . . . . 1 . . . . . . . . . 1 . Unlock Access 2 | . . . . . . . 1 . . . . . . . . . 1 . Unauthorized Hacks 47 | . 7 . 8 . . . 5 . 1 5 . . 8 6 . 5 2 . Terminals 47 | . 7 . 8 . . . 5 . 1 5 . . 8 6 . 5 2 . Assimilate 7 | . . . 1 . . . 1 . . 1 . . 3 1 . . . . Botnet 40 | . 7 . 7 . . . 4 . 1 4 . . 5 5 . 5 2 . Fabricators . | . . . . . . . . . . . . . . . . . . . Repair Stations . | . . . . . . . . . . . . . . . . . . . Recycling Units . | . . . . . . . . . . . . . . . . . . . Scanalyzers . | . . . . . . . . . . . . . . . . . . . Garrison Access . | . . . . . . . . . . . . . . . . . . . Data Cores Recovered . | . . . . . . . . . . . . . . . . . . . Used . | . . . . . . . . . . . . . . . . . . . Hacking Detections 65 | . 7 . 8 . . . 5 5 1 6 . . 9 7 1 8 8 . Full Trace Events 8 | . . . 1 . . . 1 . . 2 . . 2 1 . 1 . . Feedback Events 1 | . . . 1 . . . . . . . . . . . . . . . Corruption 1 | . . . 1 . . . . . . . . . . . . . . . Feedback Blocked . | . . . . . . . . . . . . . . . . . . . Robot Schematics Acquired 3 | . . . . . . . . . . . . . . . . 3 . . Robots Built 3 | . . . . . . . . . . . . . . . . 3 . . Authchips . | . . . . . . . . . . . . . . . . . . . Time 169 | . . . . . . . . . . . . . . . . 169 . . Total Robot Build Rating 18 | . . . . . . . . . . . . . . . . 18 . . Part Schematics Acquired 21 | . . . . . . . 8 . . 3 . . 7 1 . 2 . . Parts Built 8 | . . . . . . . . . . 6 . . . . . 2 . . Authchips . | . . . . . . . . . . . . . . . . . . . Time 246 | . . . . . . . . . . 199 . . . . . 47 . . Total Part Build Rating 32 | . . . . . . . . . . 22 . . . . . 10 . . Parts Repaired . | . . . . . . . . . . . . . . . . . . . Time . | . . . . . . . . . . . . . . . . . . . Parts Recycled . | . . . . . . . . . . . . . . . . . . . Recycled Matter . | . . . . . . . . . . . . . . . . . . . Retrieved Matter . | . . . . . . . . . . . . . . . . . . . Retrieved Components . | . . . . . . . . . . . . . . . . . . . Parts Scanalyzed 16 | . . . . . . . 8 . . 3 . . 5 . . . . . Part Schematics Acquired 16 | . . . . . . . 8 . . 3 . . 5 . . . . . Parts Damaged . | . . . . . . . . . . . . . . . . . . . Bothacking | -11 -10 -10 -9 -9 -9 -8 -8 -8 -8 -7 -7 -7 -6 -6 -6 -5 -4 -4 ------------ Run | Jun Mat Min Mat Min Exi Min Mat Gar Mat Fac Low Low Fac Ext Cet Fac Fac Gar Used RIF Installer . | . . . . . . . . . . . . . . . . . . . Robots Hacked . | . . . . . . . . . . . . . . . . . . . Non-combat . | . . . . . . . . . . . . . . . . . . . Combat . | . . . . . . . . . . . . . . . . . . . Robot Hacks Applied . | . . . . . . . . . . . . . . . . . . . Relay Couplers Released 29 | . . . . . . . . 16 . . . . . . . . . 13 Machine Destruction 29 | . . . . . . . . 16 . . . . . . . . . 13 Fabnet Peak Effective % . | . . . . . . . . . . . . . . . . . . . Robots Rewired 14 | . . . . . . . . 2 . . . 2 . 4 . . 3 3 Allies Hacked . | . . . . . . . . . . . . . . . . . . . Hacks Repelled . | . . . . . . . . . . . . . . . . . . . Allies | -11 -10 -10 -9 -9 -9 -8 -8 -8 -8 -7 -7 -7 -6 -6 -6 -5 -4 -4 -------- Run | Jun Mat Min Mat Min Exi Min Mat Gar Mat Fac Low Low Fac Ext Cet Fac Fac Gar Total Allies 39 | . . 3 . 1 . . . 2 . 1 . 2 2 19 . 3 3 3 Largest Group 15 | . . 3 3 1 . . . 2 . 1 . 2 1 15 15 3 1 3 Highest-Rated Group 532 | . . 40 40 31 . . . 64 . 10 . 36 10 532 532 152 50 118 Highest-Rated Ally 159 | . . 16 16 31 . . . 39 . 10 . 20 10 159 159 152 50 51 Total Orders 8 | . . . . . . . . . . . . . . . . . 8 . ROAM 4 | . . . . . . . . . . . . . . . . . 4 . EXPLORE 4 | . . . . . . . . . . . . . . . . . 4 . Ally Attacks 293 | . . . 19 . . . . 31 . . . 21 . 72 117 3 12 18 Total Damage 7003 | . . . 288 . . . . 536 . . . 312 . 2104 2593 81 526 563 Kills 67 | . . . 3 . . . . 8 . . . 2 . 13 31 1 4 5 Allies Corrupted 1 | . . . . . . . . . . . . . . . . . 1 . Allies Melted 2 | . . . . . . . . . . . . . . . . 2 . . Intel | -11 -10 -10 -9 -9 -9 -8 -8 -8 -8 -7 -7 -7 -6 -6 -6 -5 -4 -4 ------- Run | Jun Mat Min Mat Min Exi Min Mat Gar Mat Fac Low Low Fac Ext Cet Fac Fac Gar Robot Analysis Total 7 | . 2 . 2 . . . . . . 1 . . . 1 . 1 . . Derelict Logs Recovered 6 | . . 1 . 1 . . . . . . 3 1 . . . . . . Drone Launches 5 | . . . . . . . . . . . . . . 1 . . 4 . Drone Recoveries 2 | . . . . . . . . . . . . . . . . . 2 . Exploration | -11 -10 -10 -9 -9 -9 -8 -8 -8 -8 -7 -7 -7 -6 -6 -6 -5 -4 -4 ------------- Run | Jun Mat Min Mat Min Exi Min Mat Gar Mat Fac Low Low Fac Ext Cet Fac Fac Gar Turns Passed 31683 | 44 636 812 2245 1552 821 421 1482 1948 1104 1832 3178 2524 1682 1695 727 2492 4068 2420 Spaces Moved 15136 | 33 598 662 1282 489 256 130 652 826 383 837 1192 1048 959 942 413 1362 1922 1150 Core 15 | 1 . . . 1 . . . . . . . . . 10 . . . 3 Treads 7535 | 2 . . 68 447 256 130 23 . . . 757 711 . 297 413 1362 1922 1147 Legs 2634 | . . . . . . . 153 826 383 837 435 . . . . . . . Wheels 4952 | 30 598 662 1214 41 . . 476 . . . . 337 959 635 . . . . Hover . | . . . . . . . . . . . . . . . . . . . Flight . | . . . . . . . . . . . . . . . . . . . Fastest Speed 50 | 50 90 90 140 145 320 320 105 197 197 197 196 130 100 100 160 160 160 50 Average Speed 174 | 94 90 108 152 309 320 320 141 197 197 197 246 215 111 147 160 160 162 162 Slowest Speed 1450 | 160 90 175 320 1450 320 320 320 200 197 197 330 250 145 700 160 160 166 700 Overloaded Moves . | . . . . . . . . . . . . . . . . . . . Propulsion Burnouts . | . . . . . . . . . . . . . . . . . . . Robots Hopped . | . . . . . . . . . . . . . . . . . . . Cave-ins Triggered 2 | . . . . 1 . . . . . . . . . . . . . 1 Exploration Rate (%) 64 | 3 95 98 96 75 62 39 58 93 27 23 97 97 28 81 96 31 44 89 Regions Visited 18 Branch Regions 8 Pre-discovered Areas 3 | . . 2 . . . . . . . . 1 . . . . . . . Known Exits Taken 9 | . 1 . 1 . . . 1 . 1 . 1 . 1 1 . 1 1 . Unknown Exits Taken 8 | 1 . 1 . 1 1 1 . . . 1 . 1 . . 1 . . . Scrap Searched 9 | . . 2 . . . 1 . . . . 2 4 . . . . . . Spaces Dug 81 | . . . . . . . 3 1 . 7 . . 23 4 . . 29 14 Terrain Destroyed 425 | . . . 7 42 . . 14 1 . 7 . . 34 9 . 104 112 95 Melee 37 | . . . . . . . 3 1 . 7 . . 21 4 . . 1 . Projectile 118 | . . . 7 2 . . 8 . . . . . 2 5 . 16 52 26 AOE 266 | . . . . 40 . . 3 . . . . . 11 . . 88 55 69 Terrain Rammed . | . . . . . . . . . . . . . . . . . . . Walls Destroyed . | . . . . . . . . . . . . . . . . . . . Machines Disabled . | . . . . . . . . . . . . . . . . . . . Actions | -11 -10 -10 -9 -9 -9 -8 -8 -8 -8 -7 -7 -7 -6 -6 -6 -5 -4 -4 --------- Run | Jun Mat Min Mat Min Exi Min Mat Gar Mat Fac Low Low Fac Ext Cet Fac Fac Gar Total 18800 | 41 643 752 1466 515 260 137 1094 1003 694 1004 1370 1244 1423 1157 454 1544 2494 1505 Wait 1993 | . 15 71 88 9 . 8 314 59 284 108 116 107 317 96 . 26 241 134 Move 15120 | 32 597 661 1281 488 255 129 652 825 382 836 1191 1047 958 941 412 1361 1922 1150 Hop . | . . . . . . . . . . . . . . . . . . . Pick Up 232 | 1 4 7 21 1 4 . 21 2 . 12 6 2 28 8 12 33 45 25 Fast Attach 53 | 6 1 . 1 . . . 5 4 2 . 4 1 4 2 . 9 5 9 Attach 91 | . . . 8 7 . . 2 1 . 2 6 3 4 5 3 11 23 16 Detach 6 | . . . 2 . . . . . . . 2 . 1 . . 1 . . Swap 104 | 2 . 3 3 . . . 13 6 . 6 . 1 14 14 7 9 16 10 Drop 121 | . . 4 5 . . . 21 5 . 15 5 1 7 3 5 25 5 20 Fire 726 | . 26 3 55 10 . . 63 25 2 . 1 42 50 45 15 68 202 119 Melee 212 | . . . . . . . 3 62 24 15 39 20 39 7 . . 1 2 Ram 7 | . . 3 2 . . . . . . . . . 1 1 . . . . Kick . | . . . . . . . . . . . . . . . . . . . Crush 17 | . . . . . . . . . . . . . . . . 1 16 . Escape Stasis 10 | . . . . . . . . . . 10 . . . . . . . . Rewire 108 | . . . . . 1 . . 14 . . . 20 . 35 . . 18 20 Trap . | . . . . . . . . . . . . . . . . . . . Miscellaneous . | . . . . . . . . . . . . . . . . . . . Route ------- -11/Junkyard -10/Materials (discovered 5 exits: *Mat x3 / *Min x2) -10/Mines (discovered 2 exits: *Mat x2) -9/Materials (discovered 4 exits: *Mat x3 / *Min) -9/Mines (discovered 3 exits: *Mat x2 / *Exi) -9/Exiles -8/Mines -8/Materials (discovered 4 exits: *Fac x3 / Gar) -8/Garrison (discovered 3 exits: *Mat x3) -8/Materials -7/Factory (discovered 2 exits: [*Sto] / *Low) -7/Lower Caves -7/Lower Caves (discovered 2 exits: *Fac / [*Zio]) -6/Factory (discovered 2 exits: *Ext x2) -6/Extension (discovered 2 exits: *Fac / *Cet) -6/Cetus (discovered 3 exits: *Fac x2 / [*Arc]) -5/Factory (discovered 2 exits: *Fac x2) -4/Factory (discovered 2 exits: [*Res] / Gar) -4/Garrison (discovered 3 exits: [*Fac x3]) History --------- Turn | Location | Event 35 | -11/Junkyard | Discovered new exit (range 12) 45 | -11/Junkyard | Entered Materials 195 | -10/Materials | Discovered new exit (range 7) 245 | -10/Materials | Identified exit to Mines 293 | -10/Materials | Discovered new exit (range 9) 318 | -10/Materials | Build established: Mutant 446 | -10/Materials | Discovered new exit (range 16) 681 | -10/Materials | Entered Mines 712 | -10/Mines | Discovered new exit (range 9) 769 | -10/Mines | Received a Rocket Launcher from a helpful Derelict 777 | -10/Mines | Discovered new exit (range 9) 817 | -10/Mines | A weapon hastily lodged in a ceiling crevice suddenly fell to the ground 841 | -10/Mines | Learned location of Zion (-7) 944 | -10/Mines | Assisted by bots powering up and referring to "LRC-V3" 1045 | -10/Mines | Learned location of Storage (-7) 1116 | -10/Mines | Met a Derelict shopkeep closing up shop 1250 | -10/Mines | Found the Drone Emporium 1258 | -10/Mines | Found Prototype Device 1493 | -10/Mines | Entered Materials 1493 | -9/Materials | Accompanied by 3 allies 1493 | -9/Materials | Evolved 2 slots: Utility x2 1985 | -9/Materials | Discovered new exit (range 3) 2336 | -9/Materials | Discovered new exit (range 6) 2360 | -9/Materials | Identified exit to Mines 2466 | -9/Materials | Discovered new exit (range 10) 3136 | -9/Materials | Discovered new exit (range 16) 3738 | -9/Materials | Entered Mines 3754 | -9/Mines | Assembled infested the area 3757 | -9/Mines | YI-UF0 nonchalantly dropped a Grenade Launcher on the ground 3805 | -9/Mines | Core integrity fell below 50% 3824 | -9/Mines | Met a Derelict bent on vengeance 3830 | -9/Mines | Core integrity fell below 20% 3836 | -9/Mines | Crushed by falling debris 3846 | -9/Mines | Destroyed YI-UF0 3859 | -9/Mines | Lost 7 parts (1p2n1u3w) 4048 | -9/Mines | Found a damaged Exp. Sensor Array with a note attached 4054 | -9/Mines | Found Prototype Device 4391 | -9/Mines | Discovered new exit (range 10) 4442 | -9/Mines | Received a Mining Laser from a helpful Derelict 5066 | -9/Mines | Discovered new exit (range 14) 5268 | -9/Mines | Learned location of 2 exits from Materials 5277 | -9/Mines | Deemed a non-threat by the Exiles lab entrance 5277 | -9/Mines | Discovered new exit (range 5) 5290 | -9/Mines | Entered Exiles 5373 | -9/Exiles | Met 8R-AWN 5425 | -9/Exiles | Met EX-HEX 5611 | -9/Exiles | Met EX-BIN 5653 | -9/Exiles | Aligned with FarCom system 5656 | -9/Exiles | Given EX-Vault access code 5730 | -9/Exiles | Opened EX-Vault 5746 | -9/Exiles | Found Prototype Storage 5811 | -9/Exiles | Warned to stay clear of 0b10 Research branches 5900 | -9/Exiles | Met EX-DEC 6083 | -9/Exiles | Discovered new exit (range 11) 6111 | -9/Exiles | Left Exiles lab with Lightpack 2.0 6111 | -9/Exiles | Entered Mines 6455 | -8/Mines | Discovered new exit (range 10) 6532 | -8/Mines | Entered Materials 6532 | -8/Materials | Evolved 2 slots: Propulsion x2 6533 | -8/Materials | Identified exit to Factory 7215 | -8/Materials | Discovered exit to Factory (range 16) 8014 | -8/Materials | Identified exit to Garrison 8014 | -8/Materials | Entered Garrison 8191 | -8/Garrison | Discovered new exit (range 56) 8191 | -8/Garrison | Discovered new exit (range 68) 8191 | -8/Garrison | Discovered new exit (range 85) 8216 | -8/Garrison | Triggered checkpoint 8278 | -8/Garrison | Garrison Relay disabled 8492 | -8/Garrison | Triggered checkpoint 8494 | -8/Garrison | Triggered checkpoint 8732 | -8/Garrison | Garrison Relay disabled 9056 | -8/Garrison | Triggered checkpoint 9093 | -8/Garrison | Garrison Relay disabled 9208 | -8/Garrison | Triggered checkpoint 9344 | -8/Garrison | Triggered checkpoint 9476 | -8/Garrison | Triggered checkpoint 9522 | -8/Garrison | Garrison Relay disabled 9622 | -8/Garrison | Triggered checkpoint 9754 | -8/Garrison | Triggered checkpoint 9962 | -8/Garrison | Entered Materials 10915 | -8/Materials | Discovered exit to Factory (range 10) 11066 | -8/Materials | Entered Factory 11066 | -7/Factory | Evolved 2 slots: Power x1, Utility x1 11663 | -7/Factory | Fabricated Imp. Light Armor Plating? 11781 | -7/Factory | Discovered new exit (range 12) 12390 | -7/Factory | Fabricated Imp. Titanium Leg (x2) 12519 | -7/Factory | Fabricated Chainsword (x2) 12864 | -7/Factory | Discovered new exit (range 8) 12898 | -7/Factory | Entered Lower Caves 12993 | -7/Lower Caves | Met a Warlord Commander 12994 | -7/Lower Caves | Learned location of Warlord (-5) 12999 | -7/Lower Caves | Found Encrypted Comm Array 13035 | -7/Lower Caves | Attracted the attention of an 0b10 checkpoint 13379 | -7/Lower Caves | Lost 5 parts (1p2n2u) 14041 | -7/Lower Caves | Learned 8 Factory zone layouts 14467 | -7/Lower Caves | Identified exit to Lower Caves 14535 | -7/Lower Caves | Learned Factory emergency access door positions 16076 | -7/Lower Caves | Entered another Lower Caves area 16084 | -7/Lower Caves | Discovered new exit (range 13) 16350 | -7/Lower Caves | Encountered a Warlord checkpoint 17815 | -7/Lower Caves | Discovered new exit (range 9) 18036 | -7/Lower Caves | Attracted the attention of an 0b10 outpost 18179 | -7/Lower Caves | Lost 4 parts (1p1n1u1w) 18600 | -7/Lower Caves | Entered Factory 18600 | -6/Factory | Evolved 2 slots: Utility x2 18601 | -6/Factory | Identified exit to Extension 18942 | -6/Factory | Build established: Assassin 19274 | -6/Factory | Garrison activated, responded to threat 19312 | -6/Factory | Identified Lightpack 2.0 20224 | -6/Factory | Build established: Hauler-Assassin 20282 | -6/Factory | Entered Extension 20542 | -6/Extension | Identified Sensor Drone Bay 20544 | -6/Extension | Identified Exp. Sensor Array 20811 | -6/Extension | Rescued a captive Derelict 20901 | -6/Extension | Rescued a captive Derelict 20902 | -6/Extension | Rescued a captive Derelict 20995 | -6/Extension | Identified exit to Cetus 21020 | -6/Extension | Rescued A7 21098 | -6/Extension | Build established: Hauler-Mutant 21215 | -6/Extension | Spotted B-75 Beast 21240 | -6/Extension | Spotted B-75 Beast 21259 | -6/Extension | Allies destroyed B-75 Beast 21272 | -6/Extension | Allies destroyed B-75 Beast 21444 | -6/Extension | Rescued a captive Derelict 21444 | -6/Extension | Rescued a captive Derelict 21477 | -6/Extension | Rescued a captive Derelict 21478 | -6/Extension | Rescued a captive Derelict 21516 | -6/Extension | Rescued a captive Derelict 21606 | -6/Extension | Rescued a captive Derelict 21607 | -6/Extension | Rescued a captive Derelict 21661 | -6/Extension | Rescued a captive Derelict 21715 | -6/Extension | Rescued a captive Derelict 21715 | -6/Extension | Rescued a captive Derelict 21921 | -6/Extension | Discovered new exit (range 10) 21977 | -6/Extension | Entered Cetus 21977 | -6/Cetus | Accompanied by 15 allies (A7) 21982 | -6/Cetus | Acquired a Cetus Manufacturing Module code from A7 21999 | -6/Cetus | Spotted Cetus Guard 21999 | -6/Cetus | Spotted Cetus Guard 22001 | -6/Cetus | Spotted Cetus Guard 22001 | -6/Cetus | Spotted Cetus Guard 22006 | -6/Cetus | Allies destroyed Cetus Guard 22014 | -6/Cetus | Allies destroyed Cetus Guard 22019 | -6/Cetus | Allies destroyed Cetus Guard 22020 | -6/Cetus | Allies destroyed Cetus Guard 22054 | -6/Cetus | Cetus Manufacturing Module disabled 22167 | -6/Cetus | Discovered new exit (range 15) 22341 | -6/Cetus | Failed to start Cetus Manufacturing Module 22352 | -6/Cetus | Escorted A7 to Cetus Mainframe 22602 | -6/Cetus | Discovered new exit (range 15) 22631 | -6/Cetus | Spotted Cetus Guard 22631 | -6/Cetus | Spotted Cetus Guard 22641 | -6/Cetus | Spotted Cetus Guard 22648 | -6/Cetus | Allies destroyed Cetus Guard 22656 | -6/Cetus | Allies destroyed Cetus Guard 22659 | -6/Cetus | Allies destroyed Cetus Guard 22659 | -6/Cetus | Spotted Cetus Guard 22664 | -6/Cetus | Destroyed Cetus Guard 22672 | -6/Cetus | Discovered new exit (range 16) 22682 | -6/Cetus | Met Revision 17 22704 | -6/Cetus | Entered Factory 22704 | -5/Factory | Accompanied by 1 ally (A7) 22704 | -5/Factory | Evolved 2 slots: Utility x2 22709 | -5/Factory | Received a hacking code to weaken MAIN.C 23042 | -5/Factory | Discovered new exit (range 10) 23597 | -5/Factory | Fabricated Weapon Mount (x2) 23836 | -5/Factory | Cargo convoy interrupted 23866 | -5/Factory | Fabricated B-60 Warrior (x3) 23885 | -5/Factory | Garrison activated, responded to threat 24321 | -5/Factory | System corruption reached 10% 24766 | -5/Factory | Build established: Hauler-Skirmisher 25157 | -5/Factory | Discovered new exit (range 5) 25192 | -5/Factory | Found Prototype Device 25194 | -5/Factory | Identified Active Sensor Suite 25195 | -5/Factory | Identified exit to Factory 25196 | -5/Factory | Entered another Factory area 25196 | -4/Factory | Evolved 2 slots: Utility x2 25255 | -4/Factory | Identified exit to DSF 27343 | -4/Factory | Lost 3 parts (3w) 27603 | -4/Factory | Lost 3 parts (2n1w) 27933 | -4/Factory | Build established: Hauler-Mutant 28054 | -4/Factory | Lost 4 parts (1p1n2u) 28859 | -4/Factory | Discovered new exit (range 17) 28967 | -4/Factory | Destroyed 7 combat bots 29264 | -4/Factory | Identified exit to Garrison 29264 | -4/Factory | Entered Garrison 29264 | -4/Garrison | Warlord forces raided the area 29268 | -4/Garrison | Warlord forces retreated 29272 | -4/Garrison | Triggered checkpoint 29278 | -4/Garrison | Triggered checkpoint 29532 | -4/Garrison | Garrison Relay disabled 29848 | -4/Garrison | Triggered checkpoint 29906 | -4/Garrison | Discovered new exit (range 13) 30058 | -4/Garrison | Phase Generator disabled 30160 | -4/Garrison | Triggered checkpoint 30235 | -4/Garrison | Garrison Relay disabled 30332 | -4/Garrison | Triggered checkpoint 30350 | -4/Garrison | Triggered checkpoint 30459 | -4/Garrison | Garrison Relay disabled 30670 | -4/Garrison | Discovered new exit (range 10) 30742 | -4/Garrison | Triggered checkpoint 30747 | -4/Garrison | Garrison Relay disabled 30760 | -4/Garrison | Crushed by falling debris 30760 | -4/Garrison | Core integrity fell below 50% 30760 | -4/Garrison | System corruption reached 10% 30890 | -4/Garrison | Found Relay Coupler [Proto] 30929 | -4/Garrison | Found Relay Coupler [Proto] 30933 | -4/Garrison | Found Relay Coupler [Proto] 30935 | -4/Garrison | Found Relay Coupler [Proto] 31075 | -4/Garrison | Discovered new exit (range 12) 31125 | -4/Garrison | Build established: Scavenger-Mutant 31566 | -4/Garrison | Triggered checkpoint 31660 | -4/Garrison | Core integrity fell below 20% 31684 | -4/Garrison | Destroyed by X-82 Rainmaker with Heavy Flak Cannon Last Messages --------------- Force Lance severed. Penetrated by Slug. Acquired Lgt. Quantum Reactor. Penetrated by Slug. Destroyed Lgt. Antimatter Reactor. L-61 Swordsman knocked back. Destroyed Flexi-carbon Leg. L-61 Swordsman destroyed. Knocked back. Penetrated by Slug. Y-64 Sentinel destroyed. Penetrated by Slug. Lgt. Quantum Reactor destroyed. Penetrated by Slug. Linear Accelerator destroyed. Penetrated by Slug. Slug penetrates Y-64 Sentinel. Adv. Visual Processing Unit destroyed. Acquired 45 matter. Penetrated by Slug. Map ----- +----------------------------------------------------+ | ??# #????????????????????????????# !###% #????? | | ### #???????###################### / ##" !! #????? | | #???????# "#" [! #????? | | ### #???????# %#"#????? | | ??# #???????# %!! %% ###????? | | ??# #???????# ####### ######### #######??????? | | ??# #???????# #?????# #???##"## #"#??????????? | | ??# ######### ####### #?###== ###?????????? | | ??# ## ###=#![[ # ##????????? | | ??# ### ## ## ####### ## ]!]]!!| #????????? | | ??# #?# ## ## #?????# ### #!*]!] # ##????????? | | ??# #?# ## #?????# #?####! #######?????????? | | ?##"###[ %## #?????# #??###/]######??????????? | | ## =%=%% ####### #?##|%!!!! *##?????????? | | ==*[[* #?#%!* [] !%#?????????? | | %%=%= [% #?##" ! |##?????????? | | ##=% ##%* ## ##########??#"" """"""#??????????? | | ##%==#"% ## ###?????????###########??????????? | | [ %=% *== %%#??????????????????????????????? | | =%=*%= %%] *[=#??????????????????????????????? | | * [[% [*! [!=%#??????????????????????????????? | | % [ =%*#??????????????????????????????? | | ## !## ##* ###??????????????????????????????? | | ## |%## ## %%%################################? | | =[ %^%%%!=/xY% #? | | "%% %^b/%*%!=Y@ #? | | ## %%% % ####%###b ######;## ######### #? | | ?## ##" ## ##??##??# #???# ## #???????# #? | | ??# ##%" ## #???????# #???##### =###?????# #? | | ??# ##"##### #???????# #???##"[ = !###???# #? | | ### #" #???# #???????# #???#""=# ^# ""#???# #? | | #???# #???????# #???#"! # # ="#???# #? | | ### ####???# #???????# #???#"= # # ]"#???# #? | | ### #??????# #???????# #???#" # #= "#???# #? | | #??????# #???????# #???#"* # # *"#???# #? | | #??????# % ??????# #???#"= # # ]"#???# #? | | #### #??????#/ %%#?????# #???#"[ # # *"#???# #? | | ???# #??????#%%%[#?????# #???#"" [[""#???# #? | | ???# #??????#%=###?????# #???#"""=*[* ""#???# #? | | ???# #??????# #???????# #???#"""" """""#???# #? | | ???# #?????? #???????# #???############???# #? | | ???# #?????? *#???????# #??????????????????# #? | | ???# #??????%]%#???????# #???????#####??????# #? | | ???# #??????#%%#???????# #???????# #??????# #? | | ???# ##?????## #???????# ######### < ######## #? | | ?### T#??????? #?????### #? | | ## ####????? #?????# " #? | | *! #????? #?????#############""########## "# | | ##%[!## #????? #?????????????????####????????# ## | | ?### #! !#???? ??????????????????????????????# #? | +----------------------------------------------------+ Best States ------------- Heat Dissipation 70 Energy Generation 45 Energy Capacity 480 Matter Stores 300 Matter Capacity 300 Sight Range 20 Robot Scan Range 20 Terrain Scan Range 20 Terrain Scan Density 210 Jamming Range 14 Cloak Strength 4 Base Temperature (-) 200 Corruption Containment 12 Armor Coverage 675 Resistance: KI 50 Resistance: TH 50 Resistance: EX 20 Resistance: EM 20 Resistance: I 20 Resistance: S 20 Resistance: P 20 Power Shielding 66 Propulsion Shielding 66 Utility Shielding 33 Weapon Shielding 90 Weapon Cycling 20 Evasion (%) 42 Targeting Accuracy 20 Melee Accuracy 16 Target Analysis 6 Core Analysis 6 Armor Integrity Analysis 30 Recoil Reduction 4 Kinecelleration 40 Offensive Hacking 20 Defensive Hacking 12 Item Schematics ----------------- Imp. Terrain Scanner | -8/Materials | Scanalyzed Imp. Terrain Scan Processor | -8/Materials | Scanalyzed Adv. Targeting Computer | -8/Materials | Scanalyzed Imp. Titanium Leg | -8/Materials | Scanalyzed Imp. Sensor Array | -8/Materials | Scanalyzed Ripper | -8/Materials | Scanalyzed Propulsion Shielding | -8/Materials | Scanalyzed Melee Analysis Suite | -8/Materials | Scanalyzed Imp. Light Armor Plating | -7/Factory | Scanalyzed Arm. Treads | -7/Factory | Scanalyzed Weight Redist. System | -7/Factory | Scanalyzed System Shield | -6/Factory | Scanalyzed System Restoration Module | -6/Factory | Scanalyzed Adv. Terrain Scanner | -6/Factory | Scanalyzed Transmission Jammer | -6/Factory | Scanalyzed Mak. Terrain Scan Processor | -6/Factory | Scanalyzed Weapon Mount | -6/Factory | Hacked Adv. Cooling System | -6/Factory | Hacked Hyp. Gauss Cannon | -6/Extension | Hacked Biometal Leg | -5/Factory | Hacked Hyp. Railgun | -5/Factory | Hacked Robot Schematics ------------------ M-22 Extractor | -5/Factory | Hacked E-15 Imp | -5/Factory | Hacked R-10 Processor | -5/Factory | Hacked Fabricated ------------ Imp. Light Armor Plating | x2 | -7/Factory Imp. Titanium Leg | x2 | -7/Factory Chainsword | x2 | -7/Factory | Preloaded Weapon Mount | x2 | -5/Factory B-60 Warrior | x3 | -5/Factory | Preloaded Alien Tech Used ----------------- None Achievements -------------- Main Advantage Project G-00 Challenges ------------ None Game ------ Seed StealthLightningPrototype Manual? 0 Play Time 05:35:01 Cumulative 139.1 hours Start 2023.05.09 @ 17:27:58 End 2023.05.10 @ 04:48:05 Sessions 1 Manual Loads 0 Difficulty Adventurer Special Mode None Game No. 122 Rogue 72 Adventurer 50 Explorer 0 Win Type - Total 0 Types 0/0/0/0/0/0/0/0/0 Lore% 42 Gallery% 54 Achievement% 42 Wizard Run 0 Options --------- ASCII 0 Keyboard 0 Movement Mouse Keybinds 0 Fullscreen 1 Font 12/Smallcaps Map View 83x54 Tactical HUD 0 Map Filters NONE Filters NONE Steam 1 RUN: 2ca89002-e4d0-4070-9273-5fea313b5f88